bitfinex-derivatives/quotes_BTCF0:USTF0_20260314
["timestamp","ask_amount","ask_price","bid_price","bid_amount"]
[1773486052979,0.00899,70635.0,70624.0,0.042471]
[1773486053176,0.21553823,70634.0,70624.0,0.042471]
[1773486053378,0.00899,70635.0,70624.0,0.042471]
[1773486053578,0.21556056,70634.0,70624.0,0.042471]
[1773486053780,0.00899,70635.0,70624.0,0.042471]
[1773486053971,0.21556056,70634.0,70624.0,0.042471]
[1773486054174,0.21558592,70633.0,70624.0,0.042471]
[1773486054371,0.00899,70635.0,70624.0,0.042471]
[1773486054581,0.21558592,70634.0,70624.0,0.042471]
[1773486054786,0.21558592,70633.0,70624.0,0.042471]
[1773486054988,0.00899,70635.0,70624.0,0.042471]
[1773486055189,0.21561463,70634.0,70624.0,0.042471]
[1773486055379,0.21561463,70633.0,70624.0,0.042471]
[1773486055581,0.00899,70635.0,70624.0,0.042471]
[1773486055784,0.21561463,70634.0,70624.0,0.042471]
[1773486055990,0.21561463,70633.0,70624.0,0.042471]
[1773486056290,0.00899,70635.0,70624.0,0.042471]
[1773486058092,0.21572646,70634.0,70624.0,0.042471]
[1773486058393,0.00899,70635.0,70624.0,0.042471]
[1773486058586,0.21572646,70634.0,70624.0,0.042471]
[1773486058786,0.00899,70635.0,70624.0,0.042471]
[1773486059093,0.21572646,70634.0,70624.0,0.042471]
[1773486059284,0.00899,70635.0,70624.0,0.042471]
[1773486059594,0.21577563,70634.0,70624.0,0.042471]
[1773486059789,0.00899,70635.0,70624.0,0.042471]
[1773486060092,0.21577563,70634.0,70624.0,0.042471]
[1773486060286,0.21577563,70633.0,70624.0,0.042471]
[1773486060488,0.00899,70635.0,70624.0,0.042471]
[1773486060790,0.21582583,70634.0,70624.0,0.042471]
[1773486060992,0.21582583,70633.0,70624.0,0.042471]
[1773486061188,0.00899,70635.0,70624.0,0.042471]
[1773486061392,0.21589872,70634.0,70624.0,0.042471]
[1773486061694,0.21589872,70633.0,70624.0,0.042471]
[1773486061893,0.21589872,70632.0,70624.0,0.042471]
[1773486062090,0.2174322,70631.0,70623.0,0.042472]
[1773486062297,0.04005709,70629.0,70616.0,0.009]
[1773486062593,0.04005709,70627.0,70616.0,0.009]
[1773486062787,0.21601207,70626.0,70616.0,0.009]
[1773486063193,0.00144,70625.0,70604.0,0.0403939]
[1773486063388,0.21601207,70624.0,70604.0,0.0403939]
[1773486063583,0.21601207,70623.0,70613.0,0.042478]
[1773486063783,0.21601207,70622.0,70613.0,0.042478]
[1773486063993,0.21601207,70621.0,70613.0,0.042478]
[1773486064192,0.043911,70625.0,70613.0,0.042478]
[1773486064396,0.21598685,70624.0,70613.0,0.042478]
[1773486064596,0.21598685,70623.0,70613.0,0.042478]
[1773486064797,0.21598685,70622.0,70613.0,0.042478]
[1773486064996,0.21598685,70621.0,70613.0,0.042478]
[1773486065191,0.043911,70625.0,70613.0,0.042478]
[1773486065385,0.21596656,70624.0,70613.0,0.042478]
[1773486065588,0.21596656,70623.0,70613.0,0.042478]
[1773486065788,0.21596656,70622.0,70613.0,0.042478]
[1773486066000,0.21596656,70621.0,70613.0,0.042478]
[1773486066194,0.2179825,70620.0,70604.0,0.0403939]
[1773486066394,0.2194225,70619.0,70612.0,0.042478]
[1773486066599,0.2179825,70618.0,70604.0,0.0403939]
[1773486067093,0.2179825,70618.0,70613.0,0.042478]
[1773486067492,0.2179825,70618.0,70604.0,0.0403939]
[1773486067992,0.2179825,70618.0,70613.0,0.042478]
[1773486068194,0.00144,70619.0,70604.0,0.0403939]
[1773486068590,0.21794811,70618.0,70604.0,0.0403939]
[1773486068794,0.009,70618.0,70604.0,0.0403939]
[1773486069094,0.009,70618.0,70613.0,0.042478]
[1773486069800,0.009,70618.0,70614.0,0.042477]
[1773486073300,0.009,70618.0,70604.0,0.0403939]
[1773486074295,0.009,70618.0,70611.0,0.042479]
[1773486084814,0.009,70618.0,70612.0,0.042478]
[1773486087212,0.009,70618.0,70610.0,0.04248]
[1773486087412,0.009,70618.0,70611.0,0.042479]
[1773486091018,0.21817871,70617.0,70611.0,0.042479]
[1773486091221,0.009,70618.0,70611.0,0.042479]
[1773486091518,0.21818163,70617.0,70611.0,0.042479]
[1773486091720,0.00144,70616.0,70611.0,0.042479]
[1773486092022,0.00144,70615.0,70611.0,0.042479]
[1773486095818,0.00144,70615.0,70610.0,0.04248]
[1773486097723,0.00144,70614.0,70610.0,0.04248]
[1773486098023,0.00144,70613.0,70610.0,0.04248]
[1773486098318,0.042473,70622.0,70610.0,0.04248]
[1773486098623,0.22004066,70621.0,70610.0,0.04248]
[1773486098808,0.21860066,70620.0,70610.0,0.04248]
[1773486099007,0.21860066,70619.0,70610.0,0.04248]
[1773486099221,0.21860066,70618.0,70610.0,0.04248]
[1773486099414,0.21860066,70617.0,70610.0,0.04248]
[1773486099622,0.21860066,70616.0,70610.0,0.04248]
[1773486099922,0.22004066,70615.0,70610.0,0.04248]
[1773486100107,0.00144,70615.0,70610.0,0.04248]
[1773486100820,0.00144,70614.0,70610.0,0.04248]
[1773486101022,0.00144,70613.0,70610.0,0.04248]
[1773486101323,0.00144,70612.0,70610.0,0.04248]
[1773486103313,0.00144,70612.0,70610.0,0.001]
[1773486104222,0.00144,70612.0,70610.0,0.04348]
[1773486105219,0.042474,70621.0,70610.0,0.04348]
[1773486105425,0.21824558,70620.0,70610.0,0.04348]
[1773486105637,0.21680558,70619.0,70610.0,0.04348]
[1773486106729,0.21680558,70619.0,70610.0,0.04248]
[1773486123448,0.21680558,70619.0,70608.0,0.042481]
[1773486124539,0.21680558,70619.0,70609.0,0.04248]
[1773486126847,0.21680558,70619.0,70610.0,0.04248]
[1773486127250,0.21680558,70619.0,70603.0,0.04884647]
[1773486127753,0.21680558,70619.0,70610.0,0.042479]
[1773486133155,0.00144,70620.0,70611.0,0.03984647]
[1773486133356,0.0014,70636.0,70626.0,0.04247]
[1773486133654,0.0014,70635.0,70626.0,0.04247]
[1773486133856,0.0014,70634.0,70626.0,0.04247]
[1773486134152,0.0014,70637.0,70622.0,0.0014]
[1773486134352,0.0014,70637.0,70626.0,0.03984647]
[1773486134655,0.042459,70645.0,70626.0,0.03984647]
[1773486134855,0.04386,70644.0,70630.0,0.042467]
[1773486135151,0.04220377,70649.0,70630.0,0.03984647]
[1773486135357,0.0014,70648.0,70630.0,0.07409111]
[1773486135554,0.0014,70648.0,70633.0,0.042466]
[1773486135555,0.043858,70648.0,70633.0,0.042466]
[1773486135754,0.042458,70648.0,70633.0,0.042466]
[1773486135969,0.043858,70647.0,70633.0,0.042466]
[1773486136265,0.042458,70647.0,70633.0,0.042466]
[1773486136452,0.043859,70646.0,70633.0,0.042466]
[1773486136845,0.043859,70646.0,70626.0,0.00899]
[1773486136846,0.04220377,70644.0,70626.0,0.00899]
[1773486137247,0.001,70640.0,70626.0,0.00899]
[1773486137456,0.0014,70639.0,70626.0,0.00899]
[1773486138061,0.0014,70639.0,70627.0,0.042469]
[1773486143358,0.0014,70639.0,70628.0,0.042469]
[1773486147863,0.0014,70639.0,70626.0,0.05146]
[1773486148366,0.043863,70639.0,70626.0,0.05146]
[1773486149158,0.043863,70639.0,70627.0,0.042469]
[1773486153057,0.0014,70639.0,70626.0,0.00899]
[1773486153770,0.043863,70639.0,70627.0,0.042469]
[1773486157067,0.0014,70639.0,70626.0,0.00899]
[1773486158268,0.0014,70639.0,70630.0,0.042468]
[1773486159473,0.05287675,70645.0,70626.0,0.05025465]
[1773486159474,0.0014,70644.0,70631.0,0.04126465]
[1773486159670,0.0014,70646.0,70638.0,0.042463]
[1773486159976,0.042455,70651.0,70638.0,0.042463]
[1773486160170,0.0014,70650.0,70638.0,0.042463]
[1773486160774,0.0014,70649.0,70638.0,0.042463]
[1773486161078,0.00899,70644.0,70636.0,0.042464]
[1773486161376,0.00899,70644.0,70636.0,0.08372865]
[1773486162480,0.0014,70649.0,70636.0,0.08372865]
[1773486162781,0.0014,70649.0,70637.0,0.042463]
[1773486163482,0.0014,70649.0,70637.0,0.08372765]
[1773486165974,0.0014,70648.0,70638.0,0.04126465]
[1773486166274,0.0014,70647.0,70638.0,0.04126465]
[1773486166575,0.04132704,70650.0,70638.0,0.04126465]
[1773486166971,0.0014,70649.0,70638.0,0.04126465]
[1773486172074,0.043857,70649.0,70638.0,0.04126465]
[1773486173883,0.043857,70649.0,70637.0,0.042463]
[1773486175285,0.0014,70649.0,70638.0,0.042463]
[1773486175484,0.0014,70648.0,70638.0,0.042463]
[1773486176878,0.0014,70648.0,70636.0,0.04838467]
[1773486177080,0.0014,70650.0,70646.0,0.042458]
[1773486177276,0.02965684,70657.0,70646.0,0.042458]
[1773486177477,0.0014,70656.0,70646.0,0.042458]
[1773486177982,0.0014,70655.0,70644.0,0.042459]
[1773486178182,0.0014,70655.0,70646.0,0.00899]
[1773486179888,0.07210884,70657.0,70646.0,0.00899]
[1773486180078,0.0014,70656.0,70646.0,0.00899]
[1773486181879,0.0014,70656.0,70646.0,0.051448]
[1773486182080,0.0014,70672.0,70647.0,0.2081716]
[1773486182395,0.07404983,70660.0,70648.0,0.042457]
[1773486182583,0.042449,70662.0,70648.0,0.042457]
[1773486182584,0.0014,70659.0,70648.0,0.042457]
[1773486182986,0.0014,70659.0,70649.0,0.042456]
[1773486183786,0.0014,70659.0,70648.0,0.00899]
[1773486187191,0.042447,70665.0,70651.0,0.08184967]
[1773486187392,0.00899,70673.0,70659.0,0.03939467]
[1773486187393,0.042444,70670.0,70659.0,0.03939467]
[1773486187593,0.0014,70669.0,70659.0,0.03939467]
[1773486188489,0.0014,70669.0,70657.0,0.042451]
[1773486188490,0.0014,70669.0,70657.0,0.042452]
[1773486188990,0.0014,70669.0,70659.0,0.00899]
[1773486189195,0.04207257,70668.0,70647.0,0.042457]
[1773486189394,0.07404983,70662.0,70647.0,0.042457]
[1773486189595,0.04207257,70664.0,70647.0,0.042457]
[1773486189892,0.042451,70660.0,70647.0,0.042457]
[1773486190088,0.0014,70659.0,70647.0,0.042457]
[1773486191384,0.042451,70658.0,70646.0,0.042458]
[1773486191590,0.0014,70659.0,70646.0,0.042458]
[1773486191897,0.0014,70659.0,70647.0,0.00899]
[1773486192994,0.0014,70659.0,70647.0,0.051447]
[1773486193397,0.0014,70659.0,70648.0,0.042457]
[1773486193693,0.0014,70659.0,70649.0,0.042456]
[1773486196898,0.0014,70659.0,70650.0,0.042456]
[1773486199998,0.0014,70659.0,70647.0,0.00899]
[1773486200196,0.04347257,70659.0,70647.0,0.00899]
[1773486200392,0.042454,70654.0,70647.0,0.00899]
[1773486200990,0.042453,70656.0,70647.0,0.00899]
[1773486202102,0.042453,70655.0,70643.0,0.04246]
[1773486202693,0.07404983,70653.0,70643.0,0.04246]
[1773486203301,0.00144,70652.0,70643.0,0.04246]
[1773486203707,0.00144,70652.0,70641.0,0.042461]
[1773486204003,0.00144,70652.0,70643.0,0.00899]
[1773486205407,0.00144,70652.0,70643.0,0.01799]
[1773486208402,0.4810738,70679.0,70651.0,0.042455]
[1773486208603,0.04023857,70669.0,70648.0,0.042457]
[1773486208907,0.04023857,70667.0,70646.0,0.03987435]
[1773486209108,0.07404983,70660.0,70642.0,0.03987435]
[1773486209407,0.043891,70659.0,70642.0,0.03987435]
[1773486209706,0.043891,70659.0,70648.0,0.00899]
[1773486210809,0.00144,70659.0,70650.0,0.042456]
[1773486212020,0.00144,70659.0,70648.0,0.051447]
[1773486213017,0.04023857,70678.0,70655.0,0.03987435]
[1773486213315,0.04023857,70678.0,70648.0,0.00899]
[1773486213316,0.00144,70673.0,70661.0,0.042449]
[1773486213522,0.00144,70672.0,70661.0,0.042449]
[1773486215023,0.00144,70672.0,70661.0,0.051439]
[1773486215910,0.00144,70672.0,70661.0,0.09131335]
[1773486216119,0.00144,70671.0,70661.0,0.09131335]
[1773486216510,0.042442,70674.0,70661.0,0.09131335]
[1773486216707,0.00144,70673.0,70661.0,0.09131335]
[1773486217016,0.042442,70674.0,70661.0,0.09131335]
[1773486217220,0.042443,70672.0,70661.0,0.00899]
[1773486217417,0.00144,70671.0,70661.0,0.00899]
[1773486220716,0.042441,70675.0,70662.0,0.042449]
[1773486220920,0.042442,70673.0,70661.0,0.00899]
[1773486223721,0.042443,70672.0,70661.0,0.00899]
[1773486226529,0.04167857,70674.0,70661.0,0.00899]
[1773486227227,0.04023857,70670.0,70646.0,0.22664128]
[1773486227422,0.11420737,70671.0,70654.0,0.042453]
[1773486227627,0.042446,70667.0,70654.0,0.042453]
[1773486227828,0.00144,70666.0,70654.0,0.042453]
[1773486228818,0.00144,70666.0,70654.0,0.051443]
[1773486238846,0.00144,70666.0,70657.0,0.042451]
[1773486239636,0.00144,70666.0,70658.0,0.042451]
[1773486240541,0.00144,70665.0,70658.0,0.042451]
[1773486240842,0.00144,70664.0,70658.0,0.042451]
[1773486241044,0.00144,70663.0,70658.0,0.042451]
[1773486241240,0.0739688,70671.0,70659.0,0.04245]
[1773486241241,0.00144,70662.0,70659.0,0.04245]
[1773486241439,0.00144,70661.0,70659.0,0.04245]
[1773486241640,0.00899,70672.0,70660.0,0.03846818]
[1773486242043,0.00144,70671.0,70660.0,0.03846818]
[1773486242551,0.00144,70670.0,70660.0,0.03846818]
[1773486242949,0.00144,70670.0,70663.0,0.042448]
[1773486244153,0.00144,70670.0,70663.0,0.051438]
[1773486246142,0.00144,70670.0,70664.0,0.042447]
[1773486246545,0.00144,70669.0,70664.0,0.042447]
[1773486246847,0.00144,70668.0,70664.0,0.042447]
[1773486247059,0.00144,70667.0,70664.0,0.042447]
[1773486247244,0.00144,70666.0,70664.0,0.042447]
[1773486247449,0.00144,70665.0,70664.0,0.042447]
[1773486247843,0.04244,70677.0,70664.0,0.042447]
[1773486248047,0.00144,70676.0,70664.0,0.042447]
[1773486248445,0.00144,70676.0,70665.0,0.042446]
[1773486248646,0.00208,70683.0,70663.0,0.04745818]
[1773486248848,0.00144,70680.0,70671.0,0.042443]
[1773486249553,0.001,70677.0,70671.0,0.042443]
[1773486250155,0.00144,70680.0,70671.0,0.042443]
[1773486251052,0.00244,70680.0,70671.0,0.042443]
[1773486251549,0.00144,70680.0,70671.0,0.042443]
[1773486252649,0.00144,70680.0,70671.0,0.051433]
[1773486255655,0.04244,70677.0,70662.0,0.042448]
[1773486255859,0.04244,70677.0,70657.0,0.03846818]
[1773486255860,0.08320312,70677.0,70664.0,0.042447]
[1773486256160,0.042439,70679.0,70652.0,0.03846818]
[1773486256460,0.0014,70678.0,70652.0,0.03846818]
[1773486256862,0.0014,70677.0,70652.0,0.03846818]
[1773486257061,0.0014,70677.0,70665.0,0.042447]
[1773486257262,0.042439,70679.0,70665.0,0.042447]
[1773486257463,0.0014,70676.0,70665.0,0.042447]
[1773486257861,0.0014,70675.0,70665.0,0.042447]
[1773486258253,0.0014,70675.0,70664.0,0.00899]
[1773486258563,0.0014,70674.0,70664.0,0.00899]
[1773486258765,0.0014,70673.0,70664.0,0.00899]
[1773486258967,0.11543932,70681.0,70664.0,0.00899]
[1773486259150,0.0014,70680.0,70664.0,0.00899]
[1773486259556,0.0014,70679.0,70664.0,0.00899]
[1773486259863,0.0007074,70681.0,70671.0,0.042443]
[1773486260059,0.0014,70680.0,70669.0,0.042444]
[1773486260457,0.0753688,70680.0,70669.0,0.042444]
[1773486261062,0.0014,70680.0,70672.0,0.042443]
[1773486262571,0.0014,70680.0,70672.0,0.051433]
[1773486266268,0.0014,70680.0,70674.0,0.042441]
[1773486266465,0.0014,70679.0,70675.0,0.03913984]
[1773486266660,0.0006926,70678.0,70675.0,0.03913984]
[1773486266970,0.0014,70677.0,70675.0,0.03913984]
[1773486267569,0.0014,70678.0,70672.0,0.051433]
[1773486270870,0.042428,70698.0,70681.0,0.042437]
[1773486271071,0.1164008,70690.0,70672.0,0.00899]
[1773486271273,0.0014,70689.0,70672.0,0.00899]
[1773486271665,0.0014,70689.0,70669.0,1.5]
[1773486271866,0.0014,70689.0,70672.0,0.03913984]
[1773486272066,0.042433,70688.0,70675.0,0.042441]
[1773486274378,0.0014,70689.0,70672.0,0.04812984]
[1773486275172,0.0014,70688.0,70672.0,0.04812984]
[1773486276069,0.0014,70688.0,70675.0,0.04244]
[1773486276272,0.0014,70688.0,70677.0,0.03913984]
[1773486277969,0.043833,70688.0,70677.0,0.03913984]
[1773486280077,0.0014,70688.0,70677.0,0.08157884]
[1773486280380,0.0014,70688.0,70677.0,0.03913984]
[1773486280975,0.0014,70688.0,70672.0,0.00899]
[1773486281180,0.0014,70688.0,70673.0,0.03913984]
[1773486281480,0.00899,70696.0,70679.0,0.03913984]
[1773486281685,0.00899,70696.0,70685.0,0.03913984]
[1773486281866,0.00144,70695.0,70685.0,0.03913984]
[1773486282380,0.00144,70694.0,70685.0,0.03913984]
[1773486282679,0.051419,70696.0,70685.0,0.03913984]
[1773486282986,0.00144,70695.0,70685.0,0.03913984]
[1773486283186,0.043869,70695.0,70685.0,0.03913984]
[1773486284382,0.043869,70695.0,70685.0,0.04812984]
[1773486284676,0.38671649,70700.0,70685.0,0.04812984]
[1773486284865,0.38671649,70700.0,70685.0,0.09056384]
[1773486284866,0.00144,70695.0,70685.0,0.09056384]
[1773486285270,0.042428,70697.0,70685.0,0.09056384]
[1773486285475,0.00144,70694.0,70685.0,0.09056384]
[1773486285678,0.00144,70694.0,70685.0,0.04812984]
[1773486287173,0.00144,70694.0,70685.0,0.09056484]
[1773486289283,0.00899,70705.0,70685.0,0.00899]
[1773486289580,0.11637601,70700.0,70685.0,0.00899]
[1773486289878,0.043827,70699.0,70686.0,0.042434]
[1773486290474,0.042427,70698.0,70685.0,0.00899]
[1773486290680,0.21693922,70698.0,70685.0,0.00899]
[1773486291472,0.21693922,70698.0,70685.0,0.051425]
[1773486292178,0.21693922,70698.0,70685.0,0.00899]
[1773486292883,0.21693922,70698.0,70685.0,0.051425]
[1773486293384,0.21693922,70698.0,70686.0,0.042434]
[1773486293582,0.21693922,70698.0,70685.0,0.00899]
[1773486293583,0.17451222,70698.0,70685.0,0.00899]
[1773486293778,0.0014,70699.0,70688.0,0.07344549]
[1773486293980,0.17591222,70699.0,70688.0,0.07344549]
[1773486294181,0.17591222,70699.0,70690.0,0.042432]
[1773486294578,0.17451222,70699.0,70690.0,0.042432]
[1773486294778,0.00144,70698.0,70690.0,0.042432]
[1773486295780,0.00144,70698.0,70685.0,0.00899]
[1773486296182,0.00144,70698.0,70686.0,0.042434]
[1773486296482,0.00144,70698.0,70685.0,0.00899]
[1773486298186,0.00144,70698.0,70687.0,0.042433]
[1773486301388,0.00144,70698.0,70685.0,0.00899]
[1773486301601,0.042429,70695.0,70685.0,0.00899]
[1773486301888,0.042428,70697.0,70685.0,0.00899]
[1773486304688,0.05818039,70717.0,70696.0,0.03106901]
[1773486304892,0.00144,70704.0,70696.0,0.03106901]
[1773486305190,0.05818039,70717.0,70688.0,0.02919497]
[1773486305387,0.042421,70709.0,70685.0,0.01043]
[1773486305594,0.00144,70708.0,70697.0,0.042427]
[1773486305898,0.00144,70708.0,70692.0,0.03069516]
[1773486306285,0.00144,70708.0,70697.0,0.042427]
[1773486307185,0.00144,70708.0,70698.0,0.042427]
[1773486308496,0.043862,70708.0,70695.0,0.042429]
[1773486308697,0.10204239,70708.0,70695.0,0.042429]
[1773486309495,0.10204239,70708.0,70696.0,0.042428]
[1773486309690,0.00144,70708.0,70695.0,0.00899]
[1773486309890,0.042418,70713.0,70695.0,0.05304273]
[1773486310089,0.043859,70712.0,70698.0,0.042427]
[1773486310297,0.04242,70711.0,70698.0,0.042427]
[1773486310497,0.07395001,70710.0,70698.0,0.042427]
[1773486312497,0.07395001,70710.0,70699.0,0.042426]
[1773486312691,0.04242,70711.0,70699.0,0.042426]
[1773486312884,0.00144,70712.0,70699.0,0.042426]
[1773486313782,0.00144,70712.0,70695.0,0.05304273]
[1773486313982,0.00144,70712.0,70698.0,0.042427]
[1773486315399,0.043859,70712.0,70698.0,0.042427]
[1773486316298,0.043859,70712.0,70699.0,0.042426]
[1773486318596,0.12527795,70720.0,70696.0,0.0376803]
[1773486318793,0.00144,70719.0,70696.0,0.0376803]
[1773486318995,0.042417,70715.0,70696.0,0.03706318]
[1773486319197,0.042418,70714.0,70700.0,0.042425]
[1773486320802,0.0014,70713.0,70700.0,0.042425]
[1773486321097,0.0014,70712.0,70700.0,0.042425]
[1773486321296,0.0014,70711.0,70700.0,0.042425]
[1773486321497,0.0014,70711.0,70700.0,0.051415]
[1773486321697,0.005,70725.0,70707.0,0.042421]
[1773486321892,0.042415,70718.0,70705.0,0.042423]
[1773486322397,0.0014,70717.0,70705.0,0.042423]
[1773486322797,0.0014,70716.0,70706.0,0.042422]
[1773486323493,0.0014,70716.0,70708.0,0.042421]
[1773486323698,0.0014,70716.0,70706.0,0.042422]
[1773486324500,0.0014,70716.0,70708.0,0.00898]
[1773486327207,0.0014,70716.0,70708.0,0.051401]
[1773486327894,0.0014,70715.0,70709.0,0.04242]
[1773486329803,0.0014,70715.0,70709.0,0.0980214]
[1773486330507,0.0014,70715.0,70709.0,0.0556014]
[1773486331310,0.043817,70715.0,70703.0,0.042424]
[1773486331808,0.0014,70715.0,70703.0,0.042424]
[1773486332204,0.0014,70715.0,70704.0,0.042423]
[1773486332596,0.0014,70715.0,70709.0,0.00898]
[1773486334100,0.0014,70714.0,70710.0,0.0556014]
[1773486334910,0.0014,70714.0,70706.0,0.0505034]
[1773486335501,0.0014,70714.0,70697.0,0.0556014]
[1773486336396,0.07395001,70710.0,70697.0,0.0556014]
[1773486336795,0.11637001,70710.0,70697.0,0.1070194]
[1773486337108,0.042419,70712.0,70699.0,0.042426]
[1773486338500,0.042419,70712.0,70700.0,0.0556014]
[1773486344216,0.0014,70711.0,70700.0,0.0556014]
[1773486344516,0.042419,70712.0,70700.0,0.0556014]
[1773486344709,0.0014,70711.0,70700.0,0.0556014]
[1773486345617,0.0014,70710.0,70700.0,0.0556014]
[1773486346018,0.042419,70712.0,70700.0,0.0556014]
[1773486346215,0.0014,70711.0,70700.0,0.0556014]
[1773486346514,0.042419,70712.0,70700.0,0.0556014]
[1773486346816,0.0014,70711.0,70700.0,0.0556014]
[1773486347519,0.042419,70712.0,70700.0,0.0556014]
[1773486347709,0.0014,70711.0,70700.0,0.0556014]
[1773486348215,0.042419,70712.0,70700.0,0.0556014]
[1773486348216,0.0014,70710.0,70700.0,0.0556014]
[1773486348816,0.0014,70709.0,70700.0,0.0556014]
[1773486349010,0.0014,70708.0,70703.0,0.05737911]
[1773486349217,0.0014,70707.0,70703.0,0.05737911]
[1773486349419,0.0014,70706.0,70703.0,0.05737911]
[1773486350410,0.0014,70705.0,70703.0,0.05737911]
[1773486350613,0.0014,70704.0,70703.0,0.05737911]
[1773486350918,1e-08,70704.0,70703.0,0.05737911]
[1773486351615,0.0014,70704.0,70703.0,0.05737911]
[1773486352419,0.042418,70714.0,70703.0,0.05737911]
[1773486352616,0.0056,70711.0,70703.0,0.05737911]
[1773486355220,0.00034348,70711.0,70703.0,0.09980311]
[1773486355422,0.00028205,70713.0,70704.0,0.05750424]
[1773486355915,0.042417,70716.0,70704.0,0.05750424]
[1773486356116,0.0014,70715.0,70704.0,0.05750424]
[1773486356321,0.043817,70715.0,70704.0,0.05750424]
[1773486356622,0.0014,70714.0,70704.0,0.05750424]
[1773486357028,0.0014,70713.0,70704.0,0.05750424]
[1773486357523,0.0014,70712.0,70704.0,0.05750424]
[1773486358511,0.042417,70715.0,70704.0,0.05750424]
[1773486358721,0.0014,70711.0,70704.0,0.05750424]
[1773486359120,0.0014,70710.0,70704.0,0.05750424]
[1773486359621,0.0014,70709.0,70704.0,0.05750424]
[1773486360025,0.042417,70715.0,70704.0,0.05750424]
[1773486360225,0.0014,70714.0,70704.0,0.05750424]
[1773486360726,0.0014,70713.0,70704.0,0.05750424]
[1773486361128,0.0014,70712.0,70705.0,0.042423]
[1773486361330,0.0014,70711.0,70705.0,0.042423]
[1773486362615,0.0014,70711.0,70705.0,0.051403]
[1773486363629,0.0014,70711.0,70705.0,0.00898]
[1773486376343,0.04242,70710.0,70697.0,0.09993124]
[1773486376735,0.0014,70711.0,70698.0,0.042427]
[1773486377038,0.0014,70711.0,70698.0,0.09993124]
[1773486377943,0.0014,70711.0,70698.0,0.10891124]
[1773486378144,0.0014,70711.0,70699.0,0.09993024]
[1773486378345,0.0014,70711.0,70700.0,0.05750424]
[1773486378742,0.042419,70712.0,70700.0,0.05750424]
[1773486378940,0.0014,70711.0,70700.0,0.05750424]
[1773486379246,0.042419,70712.0,70700.0,0.05750424]
[1773486379448,0.0014,70711.0,70700.0,0.05750424]
[1773486379744,0.042419,70712.0,70700.0,0.05750424]
[1773486380044,0.0014,70711.0,70700.0,0.05750424]
[1773486380235,0.042419,70712.0,70700.0,0.05750424]
[1773486380438,0.0014,70711.0,70700.0,0.05750424]
[1773486380645,0.0014,70711.0,70701.0,0.042425]
[1773486380846,0.0014,70710.0,70702.0,0.05750424]
[1773486381246,0.042419,70713.0,70702.0,0.05750424]
[1773486381445,0.0014,70712.0,70702.0,0.05750424]
[1773486381945,0.042419,70713.0,70702.0,0.05750424]
[1773486382148,0.043819,70712.0,70702.0,0.05750424]
[1773486382542,0.0014,70711.0,70702.0,0.05750424]
[1773486382948,0.042419,70712.0,70702.0,0.05750424]
[1773486383137,0.0014,70711.0,70702.0,0.05750424]
[1773486383537,0.0014,70710.0,70702.0,0.05750424]
[1773486384045,0.0014,70709.0,70702.0,0.05750424]
[1773486384644,0.0014,70708.0,70702.0,0.05750424]
[1773486384946,0.042419,70712.0,70702.0,0.05750424]
[1773486385146,0.0014,70711.0,70702.0,0.05750424]
[1773486385648,0.0014,70710.0,70702.0,0.05750424]
[1773486386643,0.0014,70709.0,70702.0,0.05750424]
[1773486386843,0.0014,70709.0,70703.0,0.042424]
[1773486387248,0.0014,70709.0,70702.0,0.05750424]
[1773486388851,0.0014,70708.0,70703.0,0.05646873]
[1773486389150,0.0014,70707.0,70703.0,0.05646873]
[1773486389347,0.0014,70706.0,70704.0,0.05646873]
[1773486389650,0.051397,70716.0,70704.0,0.05646873]
[1773486389854,0.043817,70715.0,70704.0,0.05646873]
[1773486394953,0.0014,70715.0,70704.0,0.09889173]
[1773486395347,0.0014,70715.0,70705.0,0.042423]
[1773486395951,0.00898,70716.0,70705.0,0.042423]
[1773486396254,0.0014,70714.0,70705.0,0.042423]
[1773486396454,0.00898,70716.0,70705.0,0.05646873]
[1773486396648,0.0014,70713.0,70705.0,0.05646873]
[1773486397251,0.0014,70713.0,70708.0,0.042421]
[1773486398850,0.0014,70713.0,70708.0,0.051401]
[1773486402260,0.0014,70713.0,70709.0,0.04242]
[1773486404461,0.00898,70722.0,70710.0,0.05646873]
[1773486404767,0.0014,70721.0,70712.0,0.042418]
[1773486409260,0.0014,70721.0,70708.0,0.00898]
[1773486409468,0.042417,70715.0,70708.0,0.00898]
[1773486410163,0.0014,70714.0,70708.0,0.00898]
[1773486410360,0.0014,70713.0,70708.0,0.00898]
[1773486410559,0.042416,70718.0,70708.0,0.00898]
[1773486410865,0.0014,70717.0,70708.0,0.00898]
[1773486411162,0.042416,70718.0,70708.0,0.00898]
[1773486411363,0.0014,70716.0,70708.0,0.00898]
[1773486411660,0.042416,70718.0,70708.0,0.00898]
[1773486411857,0.0014,70715.0,70708.0,0.00898]
[1773486412254,0.0014,70714.0,70710.0,0.042419]
[1773486412455,0.0014,70713.0,70710.0,0.042419]
[1773486412656,0.0014,70712.0,70708.0,0.051401]
[1773486412851,0.0014,70711.0,70708.0,0.051401]
[1773486413053,0.0014,70710.0,70708.0,0.051401]
[1773486413264,0.0014,70709.0,70708.0,0.0219584]
[1773486415466,0.0014,70709.0,70708.0,0.0309384]
[1773486421263,0.0014,70709.0,70708.0,0.00898]
[1773486423070,0.051395,70718.0,70708.0,0.00898]
[1773486423275,0.0014,70717.0,70708.0,0.00898]
[1773486423675,0.0056,70712.0,70708.0,0.00898]
[1773486425666,0.0014,70717.0,70708.0,0.00898]
[1773486431067,0.0014,70717.0,70709.0,0.05499204]
[1773486431467,0.0056,70712.0,70709.0,0.05499204]
[1773486432070,0.0014,70717.0,70709.0,0.05499204]
[1773486434474,0.0014,70717.0,70708.0,0.00898]
[1773486434676,0.00898,70718.0,70708.0,0.06397204]
[1773486434874,0.0014,70716.0,70708.0,0.06397204]
[1773486442784,0.0014,70716.0,70709.0,0.04242]